[Event "December 19 Late 2023"]
[Site "https://www.chess.com"]
[Date "2023.12.19"]
[Round "4"]
[White "Ivic, Velimir"]
[Black "Durarbayli, Vasif"]
[Result "1-0"]
[Board "8"]
[TimeControl "180+1"]
[WhiteFideId "950122"]
[BlackFideId "13402935"]
[WhiteElo "2542"]
[BlackElo "2551"]
[WhiteTeam "SRB"]
[BlackTeam "AZE"]
[WhiteClock "0:00:27"]
[BlackClock "0:00:00"]

1. e4 {[%clk 0:02:55]}  c5 {[%clk 0:02:59]} 2. Nf3 {[%clk 0:02:55]}  d6 {[%clk 0:02:59]} 3. Bc4 {[%clk 0:02:56]}  Nf6 {[%clk 0:02:59]} 4. d3 {[%clk 0:02:56]}  e6 {[%clk 0:03:00]} 5. O-O {[%clk 0:02:57]}  a6 {[%clk 0:03:00]} 6. c3 {[%clk 0:02:57]}  b5 {[%clk 0:03:01]} 7. Bb3 {[%clk 0:02:57]}  Bb7 {[%clk 0:03:01]} 8. Re1 {[%clk 0:02:58]}  Nbd7 {[%clk 0:03:01]} 9. Nbd2 {[%clk 0:02:58]}  Be7 {[%clk 0:03:01]} 10. d4 {[%clk 0:02:58]}  Qc7 {[%clk 0:02:59]} 11. Bc2 {[%clk 0:02:58]}  e5 {[%clk 0:02:29]} 12. d5 {[%clk 0:02:54]}  c4 {[%clk 0:02:27]} 13. Nf1 {[%clk 0:02:53]}  Nc5 {[%clk 0:02:16]} 14. Ng3 {[%clk 0:02:52]}  g6 {[%clk 0:02:14]} 15. h3 {[%clk 0:02:48]}  h5 {[%clk 0:02:09]} 16. b4 {[%clk 0:02:38]}  Ncd7 {[%clk 0:01:57]} 17. a4 {[%clk 0:02:35]}  h4 {[%clk 0:01:53]} 18. Nf1 {[%clk 0:02:34]}  Nh5 {[%clk 0:01:52]} 19. Be3 {[%clk 0:02:21]}  Rg8 {[%clk 0:01:25]} 20. Qd2 {[%clk 0:02:19]}  Rb8 {[%clk 0:01:19]} 21. axb5 {[%clk 0:02:14]}  axb5 {[%clk 0:01:20]} 22. Ra7 {[%clk 0:02:13]}  Qd8 {[%clk 0:01:18]} 23. Rea1 {[%clk 0:02:11]}  g5 {[%clk 0:01:14]} 24. N3h2 {[%clk 0:02:11]}  Nf4 {[%clk 0:01:07]} 25. f3 {[%clk 0:02:07]}  Nf6 {[%clk 0:01:02]} 26. Bf2 {[%clk 0:02:06]}  Qd7 {[%clk 0:01:00]} 27. Ne3 {[%clk 0:02:06]}  Bd8 {[%clk 0:00:59]} 28. Nf5 {[%clk 0:02:01]}  N6h5 {[%clk 0:00:57]} 29. Ng4 {[%clk 0:01:59]}  Rg6 {[%clk 0:00:56]} 30. Kh2 {[%clk 0:01:37]}  Kf8 {[%clk 0:00:56]} 31. Be3 {[%clk 0:01:24]}  Ng7 {[%clk 0:00:51]} 32. Ngh6 {[%clk 0:01:15]}  Ne8 {[%clk 0:00:40]} 33. Qf2 {[%clk 0:01:14]}  Qc8 {[%clk 0:00:20]} 34. Ng4 {[%clk 0:01:11]}  Ng7 {[%clk 0:00:20]} 35. Qd2 {[%clk 0:00:51]}  Ngh5 {[%clk 0:00:19]} 36. Qe1 {[%clk 0:00:50]}  Kg8 {[%clk 0:00:18]} 37. Qf2 {[%clk 0:00:50]}  Kh7 {[%clk 0:00:18]} 38. R7a3 {[%clk 0:00:43]}  Ng7 {[%clk 0:00:18]} 39. Ba7 {[%clk 0:00:42]}  Ra8 {[%clk 0:00:17]} 40. Nxg7 {[%clk 0:00:39]}  Kxg7 {[%clk 0:00:17]} 41. Ne3 {[%clk 0:00:39]}  Rxa7 {[%clk 0:00:16]} 42. Nf5+ {[%clk 0:00:36]}  Qxf5 {[%clk 0:00:12]} 43. exf5 {[%clk 0:00:36]}  Rxa3 {[%clk 0:00:13]} 44. Rxa3 {[%clk 0:00:36]}  Rh6 {[%clk 0:00:09]} 45. Be4 {[%clk 0:00:30]}  Bxd5 {[%clk 0:00:06]} 46. Ra5 {[%clk 0:00:28]}  Bxa5 {[%clk 0:00:05]} 47. bxa5 {[%clk 0:00:29]}  Rh8 {[%clk 0:00:04]} 48. a6 {[%clk 0:00:28]}  Ra8 {[%clk 0:00:04]} 49. Qb6 {[%clk 0:00:28]}  Bxe4 {[%clk 0:00:02]} 50. fxe4 {[%clk 0:00:29]}  d5 {[%clk 0:00:03]} 51. Qb7 {[%clk 0:00:29]}  Rxa6 {[%clk 0:00:03]} 52. Qxa6 {[%clk 0:00:30]}  dxe4 {[%clk 0:00:03]} 53. Qd6 {[%clk 0:00:29]}  Nd3 {[%clk 0:00:01]} 54. Qe7 {[%clk 0:00:28]}  e3 {[%clk 0:00:01]} 55. Qxg5+ {[%clk 0:00:28]}  Kf8 {[%clk 0:00:02]} 56. Qxe3 {[%clk 0:00:29]}  Ke7 {[%clk 0:00:02]} 57. Qb6 {[%clk 0:00:29]}  e4 {[%clk 0:00:00]} 58. g3 {[%clk 0:00:27]} 1-0

[Event "December 19 Late 2023"]
[Site "https://www.chess.com"]
[Date "2023.12.19"]
[Round "4"]
[White "Dourerassou, Jonathan"]
[Black "Sjugirov, Sanan"]
[Result "0-1"]
[Board "10"]
[TimeControl "180+1"]
[WhiteFideId "628050"]
[BlackFideId "4189302"]
[WhiteElo "2499"]
[BlackElo "2569"]
[WhiteTeam "FRA"]
[BlackTeam "HUN"]
[WhiteClock "0:00:48"]
[BlackClock "0:01:54"]

1. d4 {[%clk 0:03:00]}  Nf6 {[%clk 0:03:00]} 2. Bg5 {[%clk 0:03:00]}  d5 {[%clk 0:02:58]} 3. Bxf6 {[%clk 0:02:59]}  exf6 {[%clk 0:02:55]} 4. e3 {[%clk 0:03:00]}  c6 {[%clk 0:02:54]} 5. Nd2 {[%clk 0:02:59]}  Nd7 {[%clk 0:02:48]} 6. g3 {[%clk 0:02:59]}  Nb6 {[%clk 0:02:48]} 7. Bg2 {[%clk 0:02:59]}  Be6 {[%clk 0:02:48]} 8. Ne2 {[%clk 0:02:59]}  h5 {[%clk 0:02:42]} 9. h4 {[%clk 0:02:59]}  Bd6 {[%clk 0:02:42]} 10. O-O {[%clk 0:02:58]}  g5 {[%clk 0:02:36]} 11. Nf3 {[%clk 0:02:53]}  Bg4 {[%clk 0:02:36]} 12. hxg5 {[%clk 0:02:44]}  fxg5 {[%clk 0:02:35]} 13. Ne5 {[%clk 0:02:43]}  Bxe5 {[%clk 0:02:22]} 14. dxe5 {[%clk 0:02:44]}  Qe7 {[%clk 0:02:22]} 15. f3 {[%clk 0:02:41]}  Bd7 {[%clk 0:02:15]} 16. f4 {[%clk 0:02:31]}  h4 {[%clk 0:02:12]} 17. Qe1 {[%clk 0:02:23]}  O-O-O {[%clk 0:02:08]} 18. gxh4 {[%clk 0:02:15]}  Rxh4 {[%clk 0:02:05]} 19. Qa5 {[%clk 0:01:47]}  gxf4 {[%clk 0:02:01]} 20. exf4 {[%clk 0:01:43]}  Rg8 {[%clk 0:02:00]} 21. Rf2 {[%clk 0:01:34]}  Bh3 {[%clk 0:01:59]} 22. Qxa7 {[%clk 0:01:26]}  Qc5 {[%clk 0:01:55]} 23. Kf1 {[%clk 0:00:48]}  Bxg2+ {[%clk 0:01:54]} 0-1

[Event "December 19 Late 2023"]
[Site "https://www.chess.com"]
[Date "2023.12.19"]
[Round "4"]
[White "Drygalov, Sergey"]
[Black "Troff, Kayden"]
[Result "1-0"]
[Board "11"]
[TimeControl "180+1"]
[WhiteFideId "24171743"]
[BlackFideId "2047896"]
[WhiteElo "2504"]
[BlackElo "2544"]
[WhiteTeam "RUS"]
[BlackTeam "USA"]
[WhiteClock "0:00:56"]
[BlackClock "0:00:02"]

1. d4 {[%clk 0:03:00]}  Nf6 {[%clk 0:02:59]} 2. c4 {[%clk 0:03:01]}  g6 {[%clk 0:02:59]} 3. Nc3 {[%clk 0:03:01]}  d5 {[%clk 0:02:59]} 4. cxd5 {[%clk 0:03:02]}  Nxd5 {[%clk 0:02:59]} 5. e4 {[%clk 0:03:02]}  Nxc3 {[%clk 0:02:59]} 6. bxc3 {[%clk 0:03:03]}  Bg7 {[%clk 0:02:59]} 7. Be3 {[%clk 0:03:04]}  c5 {[%clk 0:02:59]} 8. Nf3 {[%clk 0:03:05]}  Qa5 {[%clk 0:02:58]} 9. Qd2 {[%clk 0:03:03]}  O-O {[%clk 0:02:58]} 10. Rc1 {[%clk 0:03:03]}  Rd8 {[%clk 0:02:58]} 11. h4 {[%clk 0:03:02]}  Bg4 {[%clk 0:02:54]} 12. d5 {[%clk 0:03:01]}  e6 {[%clk 0:02:50]} 13. Nh2 {[%clk 0:02:58]}  h5 {[%clk 0:02:26]} 14. Nxg4 {[%clk 0:02:45]}  hxg4 {[%clk 0:02:26]} 15. h5 {[%clk 0:02:46]}  exd5 {[%clk 0:02:16]} 16. hxg6 {[%clk 0:02:34]}  dxe4 {[%clk 0:01:56]} 17. gxf7+ {[%clk 0:02:33]}  Kf8 {[%clk 0:01:52]} 18. Bxc5+ {[%clk 0:02:25]}  Qxc5 {[%clk 0:01:07]} 19. Qxd8+ {[%clk 0:02:25]}  Kxf7 {[%clk 0:01:08]} 20. Rh7 {[%clk 0:02:24]}  g3 {[%clk 0:00:42]} 21. Rc2 {[%clk 0:02:04]}  Kg6 {[%clk 0:00:32]} 22. Qg8 {[%clk 0:01:48]}  gxf2+ {[%clk 0:00:31]} 23. Kd1 {[%clk 0:01:48]}  Qe7 {[%clk 0:00:13]} 24. Rd2 {[%clk 0:01:43]}  Nd7 {[%clk 0:00:07]} 25. Rxg7+ {[%clk 0:01:37]}  Qxg7 {[%clk 0:00:08]} 26. Qxa8 {[%clk 0:01:30]}  Qxc3 {[%clk 0:00:06]} 27. Qe8+ {[%clk 0:01:25]}  Kg5 {[%clk 0:00:05]} 28. Rd5+ {[%clk 0:01:19]}  Kf4 {[%clk 0:00:04]} 29. g3+ {[%clk 0:01:00]}  Ke3 {[%clk 0:00:03]} 30. Rd3+ {[%clk 0:00:59]}  Qxd3+ {[%clk 0:00:03]} 31. Bxd3 {[%clk 0:00:59]}  Kxd3 {[%clk 0:00:04]} 32. Qxd7+ {[%clk 0:01:00]}  Ke3 {[%clk 0:00:02]} 33. Qf5 {[%clk 0:00:56]} 1-0

[Event "December 19 Late 2023"]
[Site "https://www.chess.com"]
[Date "2023.12.19"]
[Round "4"]
[White "Rustemov, Alexander"]
[Black "Tari, Aryan"]
[Result "0-1"]
[Board "14"]
[TimeControl "180+1"]
[WhiteFideId "4119002"]
[BlackFideId "1510045"]
[WhiteElo "2806"]
[BlackElo "2577"]
[WhiteTeam "RUS"]
[BlackTeam "NOR"]
[WhiteClock "0:01:43"]
[BlackClock "0:01:37"]

1. d4 {[%clk 0:02:45]}  d5 {[%clk 0:02:52]} 2. c4 {[%clk 0:02:45]}  e6 {[%clk 0:02:52]} 3. Nc3 {[%clk 0:02:45]}  c5 {[%clk 0:02:49]} 4. cxd5 {[%clk 0:02:44]}  cxd4 {[%clk 0:02:49]} 5. Qxd4 {[%clk 0:02:44]}  Nc6 {[%clk 0:02:49]} 6. Qd1 {[%clk 0:02:42]}  exd5 {[%clk 0:02:50]} 7. Qxd5 {[%clk 0:02:40]}  Bd6 {[%clk 0:02:50]} 8. g3 {[%clk 0:02:37]}  Nf6 {[%clk 0:02:50]} 9. Qb3 {[%clk 0:02:36]}  O-O {[%clk 0:02:45]} 10. Bg2 {[%clk 0:02:36]}  Nd4 {[%clk 0:02:17]} 11. Qd1 {[%clk 0:02:34]}  Bb4 {[%clk 0:02:17]} 12. e3 {[%clk 0:02:30]}  Re8 {[%clk 0:02:00]} 13. Ne2 {[%clk 0:02:28]}  Nxe2 {[%clk 0:02:01]} 14. Qxd8 {[%clk 0:02:12]}  Rxd8 {[%clk 0:02:01]} 15. Kxe2 {[%clk 0:02:12]}  Be6 {[%clk 0:02:02]} 16. Rd1 {[%clk 0:02:05]}  Bc4+ {[%clk 0:01:59]} 17. Ke1 {[%clk 0:02:05]}  Ng4 {[%clk 0:01:53]} 18. Rxd8+ {[%clk 0:01:48]}  Rxd8 {[%clk 0:01:53]} 19. Bxb7 {[%clk 0:01:45]}  Ne5 {[%clk 0:01:38]} 20. Be4 {[%clk 0:01:44]}  f5 {[%clk 0:01:38]} 21. Bc2 {[%clk 0:01:43]}  Nf3# {[%clk 0:01:37]} 0-1

[Event "December 19 Late 2023"]
[Site "https://www.chess.com"]
[Date "2023.12.19"]
[Round "4"]
[White "Kovalev, Vladislav"]
[Black "Dobrikov, Marco"]
[Result "1-0"]
[Board "15"]
[TimeControl "180+1"]
[WhiteFideId "13504398"]
[BlackFideId "12950378"]
[WhiteElo "2539"]
[BlackElo "2394"]
[WhiteTeam "FID"]
[BlackTeam "GER"]
[WhiteClock "0:01:07"]
[BlackClock "0:01:18"]

1. e4 {[%clk 0:03:00]}  e5 {[%clk 0:02:57]} 2. Nf3 {[%clk 0:03:01]}  Nc6 {[%clk 0:02:57]} 3. Bb5 {[%clk 0:03:01]}  d6 {[%clk 0:02:57]} 4. O-O {[%clk 0:03:00]}  Bd7 {[%clk 0:02:57]} 5. d4 {[%clk 0:02:58]}  exd4 {[%clk 0:02:45]} 6. Bxc6 {[%clk 0:02:58]}  bxc6 {[%clk 0:02:44]} 7. Re1 {[%clk 0:02:57]}  c5 {[%clk 0:02:36]} 8. e5 {[%clk 0:02:56]}  d5 {[%clk 0:02:36]} 9. c3 {[%clk 0:02:52]}  Be6 {[%clk 0:02:27]} 10. cxd4 {[%clk 0:02:52]}  Ne7 {[%clk 0:02:04]} 11. dxc5 {[%clk 0:02:48]}  Nc6 {[%clk 0:02:04]} 12. b4 {[%clk 0:02:36]}  Rb8 {[%clk 0:01:56]} 13. Qa4 {[%clk 0:02:31]}  Qd7 {[%clk 0:01:55]} 14. b5 {[%clk 0:02:24]}  Nd8 {[%clk 0:01:56]} 15. c6 {[%clk 0:02:24]}  Qc8 {[%clk 0:01:54]} 16. Nc3 {[%clk 0:02:08]}  Bc5 {[%clk 0:01:51]} 17. Be3 {[%clk 0:02:07]}  Bb6 {[%clk 0:01:50]} 18. Bxb6 {[%clk 0:02:01]}  axb6 {[%clk 0:01:51]} 19. Qb4 {[%clk 0:02:01]}  Ra8 {[%clk 0:01:32]} 20. Nd4 {[%clk 0:02:02]}  Qb8 {[%clk 0:01:32]} 21. f4 {[%clk 0:01:59]}  Qa7 {[%clk 0:01:31]} 22. a4 {[%clk 0:01:57]}  Qa5 {[%clk 0:01:31]} 23. Qa3 {[%clk 0:01:57]}  g6 {[%clk 0:01:23]} 24. Rf1 {[%clk 0:01:46]}  h5 {[%clk 0:01:22]} 25. f5 {[%clk 0:01:47]}  gxf5 {[%clk 0:01:19]} 26. Nxf5 {[%clk 0:01:47]}  Bxf5 {[%clk 0:01:19]} 27. Nxd5 {[%clk 0:01:46]}  Nxc6 {[%clk 0:01:19]} 28. Nxc7+ {[%clk 0:01:35]}  Kd8 {[%clk 0:01:18]} 29. Qd6+ {[%clk 0:01:07]}  Kc8 {[%clk 0:01:18]} 1-0

[Event "December 19 Late 2023"]
[Site "https://www.chess.com"]
[Date "2023.12.19"]
[Round "4"]
[White "Korchynskyi, Mykola"]
[Black "Zakhartsov, Vladimir"]
[Result "0-1"]
[Board "17"]
[TimeControl "180+1"]
[WhiteFideId "34138005"]
[BlackFideId "4145097"]
[WhiteElo "2007"]
[BlackElo "2448"]
[WhiteTeam "UKR"]
[BlackTeam "RUS"]
[WhiteClock "0:01:14"]
[BlackClock "0:01:36"]

1. d4 {[%clk 0:02:55]}  Nf6 {[%clk 0:03:00]} 2. c4 {[%clk 0:02:55]}  g6 {[%clk 0:03:00]} 3. Nc3 {[%clk 0:02:55]}  d5 {[%clk 0:03:01]} 4. cxd5 {[%clk 0:02:53]}  Nxd5 {[%clk 0:03:02]} 5. e4 {[%clk 0:02:54]}  Nxc3 {[%clk 0:03:02]} 6. bxc3 {[%clk 0:02:55]}  Bg7 {[%clk 0:03:03]} 7. Be3 {[%clk 0:02:55]}  c5 {[%clk 0:03:03]} 8. Rc1 {[%clk 0:02:56]}  O-O {[%clk 0:02:56]} 9. Nf3 {[%clk 0:02:54]}  b6 {[%clk 0:02:56]} 10. Bd3 {[%clk 0:02:52]}  Bb7 {[%clk 0:02:56]} 11. O-O {[%clk 0:02:50]}  e6 {[%clk 0:02:54]} 12. Qe2 {[%clk 0:02:48]}  Nd7 {[%clk 0:02:54]} 13. Rfd1 {[%clk 0:02:48]}  Qc7 {[%clk 0:02:54]} 14. Bb5 {[%clk 0:02:46]}  Bxe4 {[%clk 0:02:47]} 15. Bxd7 {[%clk 0:02:44]}  Qxd7 {[%clk 0:02:47]} 16. dxc5 {[%clk 0:02:45]}  Qc7 {[%clk 0:02:33]} 17. cxb6 {[%clk 0:02:44]}  axb6 {[%clk 0:02:33]} 18. Rd2 {[%clk 0:02:40]}  Ra4 {[%clk 0:02:24]} 19. Nd4 {[%clk 0:02:29]}  Bd5 {[%clk 0:02:19]} 20. h3 {[%clk 0:02:20]}  Rc4 {[%clk 0:02:12]} 21. Rb1 {[%clk 0:02:12]}  Rxc3 {[%clk 0:02:05]} 22. Rdb2 {[%clk 0:02:05]}  Qc4 {[%clk 0:01:56]} 23. Rxb6 {[%clk 0:01:28]}  Bxd4 {[%clk 0:01:48]} 24. Qxc4 {[%clk 0:01:22]}  Rxc4 {[%clk 0:01:49]} 25. Bxd4 {[%clk 0:01:23]}  Rxd4 {[%clk 0:01:50]} 26. Ra1 {[%clk 0:01:24]}  Ra4 {[%clk 0:01:49]} 27. a3 {[%clk 0:01:24]}  Rfa8 {[%clk 0:01:49]} 28. Rc1 {[%clk 0:01:24]}  Rxa3 {[%clk 0:01:49]} 29. Rc7 {[%clk 0:01:24]}  R3a7 {[%clk 0:01:48]} 30. Rc5 {[%clk 0:01:24]}  Kg7 {[%clk 0:01:48]} 31. Rd6 {[%clk 0:01:24]}  h5 {[%clk 0:01:48]} 32. h4 {[%clk 0:01:24]}  Ra5 {[%clk 0:01:42]} 33. Rc7 {[%clk 0:01:23]}  R8a7 {[%clk 0:01:42]} 34. Rc8 {[%clk 0:01:24]}  Ra4 {[%clk 0:01:41]} 35. f3 {[%clk 0:01:17]}  Rxh4 {[%clk 0:01:39]} 36. Kf2 {[%clk 0:01:17]}  Rc4 {[%clk 0:01:37]} 37. Re8 {[%clk 0:01:16]}  Rc2+ {[%clk 0:01:37]} 38. Ke3 {[%clk 0:01:16]}  Rxg2 {[%clk 0:01:37]} 39. Rd7 {[%clk 0:01:14]}  Rxd7 {[%clk 0:01:36]} 0-1

[Event "December 19 Late 2023"]
[Site "https://www.chess.com"]
[Date "2023.12.19"]
[Round "4"]
[White "Lazavik, Denis"]
[Black "Khlebovich, Alexander"]
[Result "1-0"]
[Board "18"]
[TimeControl "180+1"]
[WhiteFideId "13515110"]
[BlackFideId "4169123"]
[WhiteElo "2556"]
[BlackElo "2334"]
[WhiteTeam "BLR"]
[BlackTeam "RUS"]
[WhiteClock "0:01:40"]
[BlackClock "0:00:10"]

1. d4 {[%clk 0:03:00]}  Nf6 {[%clk 0:02:59]} 2. c4 {[%clk 0:03:01]}  g6 {[%clk 0:03:00]} 3. g3 {[%clk 0:03:01]}  Bg7 {[%clk 0:02:58]} 4. Bg2 {[%clk 0:03:02]}  d5 {[%clk 0:02:59]} 5. cxd5 {[%clk 0:03:02]}  Nxd5 {[%clk 0:02:59]} 6. Nf3 {[%clk 0:03:03]}  O-O {[%clk 0:02:59]} 7. O-O {[%clk 0:03:04]}  c5 {[%clk 0:03:00]} 8. e4 {[%clk 0:03:03]}  Nf6 {[%clk 0:03:00]} 9. e5 {[%clk 0:03:04]}  Nd5 {[%clk 0:03:00]} 10. dxc5 {[%clk 0:03:04]}  Nc6 {[%clk 0:03:01]} 11. Na3 {[%clk 0:02:55]}  Ndb4 {[%clk 0:02:53]} 12. Be3 {[%clk 0:02:54]}  Bf5 {[%clk 0:02:44]} 13. Qb3 {[%clk 0:02:41]}  Be6 {[%clk 0:02:35]} 14. Qa4 {[%clk 0:02:41]}  Qa5 {[%clk 0:02:18]} 15. Qxa5 {[%clk 0:02:33]}  Nxa5 {[%clk 0:02:19]} 16. Nd4 {[%clk 0:02:33]}  Bxe5 {[%clk 0:02:02]} 17. Nxe6 {[%clk 0:02:31]}  fxe6 {[%clk 0:02:02]} 18. Bd2 {[%clk 0:02:31]}  Nac6 {[%clk 0:01:55]} 19. Nc4 {[%clk 0:02:27]}  Nd5 {[%clk 0:01:47]} 20. Nxe5 {[%clk 0:02:20]}  Nxe5 {[%clk 0:01:48]} 21. Rae1 {[%clk 0:02:19]}  Nf3+ {[%clk 0:01:37]} 22. Bxf3 {[%clk 0:02:18]}  Rxf3 {[%clk 0:01:38]} 23. Rxe6 {[%clk 0:02:18]}  Rc8 {[%clk 0:01:36]} 24. Re5 {[%clk 0:02:13]}  Rd3 {[%clk 0:01:03]} 25. Bg5 {[%clk 0:02:07]}  Rxc5 {[%clk 0:01:00]} 26. Bxe7 {[%clk 0:02:07]}  Rc2 {[%clk 0:01:00]} 27. Bg5 {[%clk 0:01:55]}  Kf7 {[%clk 0:00:47]} 28. Rfe1 {[%clk 0:01:47]}  Rxb2 {[%clk 0:00:42]} 29. Re8 {[%clk 0:01:44]}  Rf3 {[%clk 0:00:10]} 30. Bh6 {[%clk 0:01:40]} 1-0

[Event "December 19 Late 2023"]
[Site "https://www.chess.com"]
[Date "2023.12.19"]
[Round "4"]
[White "Deac, Bogdan-Daniel"]
[Black "Gubajdullin, Alexei"]
[Result "1-0"]
[Board "20"]
[TimeControl "180+1"]
[WhiteFideId "1226380"]
[BlackFideId "4141202"]
[WhiteElo "2641"]
[BlackElo "2274"]
[WhiteTeam "ROU"]
[BlackTeam "RUS"]
[WhiteClock "0:01:53"]
[BlackClock "0:00:38"]

1. b3 {[%clk 0:03:00]}  e5 {[%clk 0:02:57]} 2. Bb2 {[%clk 0:03:00]}  d6 {[%clk 0:02:54]} 3. e3 {[%clk 0:03:00]}  Nd7 {[%clk 0:02:53]} 4. d4 {[%clk 0:02:59]}  g6 {[%clk 0:02:44]} 5. g3 {[%clk 0:02:54]}  Bg7 {[%clk 0:02:43]} 6. Bg2 {[%clk 0:02:54]}  Ne7 {[%clk 0:02:43]} 7. c4 {[%clk 0:02:53]}  O-O {[%clk 0:02:43]} 8. Ne2 {[%clk 0:02:53]}  Nf5 {[%clk 0:02:34]} 9. d5 {[%clk 0:02:52]}  h5 {[%clk 0:02:29]} 10. h3 {[%clk 0:02:50]}  Nf6 {[%clk 0:02:26]} 11. e4 {[%clk 0:02:41]}  Ne7 {[%clk 0:02:16]} 12. Nbc3 {[%clk 0:02:36]}  h4 {[%clk 0:02:15]} 13. g4 {[%clk 0:02:21]}  Nh7 {[%clk 0:02:14]} 14. f4 {[%clk 0:02:19]}  exf4 {[%clk 0:02:11]} 15. Nxf4 {[%clk 0:02:19]}  c6 {[%clk 0:02:00]} 16. O-O {[%clk 0:02:16]}  Ng5 {[%clk 0:01:57]} 17. Qd2 {[%clk 0:02:14]}  Qb6+ {[%clk 0:01:53]} 18. Kh1 {[%clk 0:02:13]}  Qd4 {[%clk 0:01:52]} 19. Qc2 {[%clk 0:02:10]}  cxd5 {[%clk 0:01:29]} 20. Rad1 {[%clk 0:02:07]}  Qc5 {[%clk 0:01:03]} 21. Ncxd5 {[%clk 0:02:03]}  Nxd5 {[%clk 0:01:02]} 22. Nxd5 {[%clk 0:02:04]}  Be5 {[%clk 0:00:53]} 23. b4 {[%clk 0:01:54]}  Qc6 {[%clk 0:00:38]} 24. Ne7+ {[%clk 0:01:53]} 1-0

[Event "December 19 Late 2023"]
[Site "https://www.chess.com"]
[Date "2023.12.19"]
[Round "4"]
[White "Bardyk, Artem"]
[Black "Bortnyk, Olexandr"]
[Result "0-1"]
[Board "21"]
[TimeControl "180+1"]
[WhiteFideId "34349979"]
[BlackFideId "14120828"]
[WhiteElo "2300"]
[BlackElo "2731"]
[WhiteTeam "RUS"]
[BlackTeam "UKR"]
[WhiteClock "0:00:00"]
[BlackClock "0:00:13"]

1. e4 {[%clk 0:03:00]}  Nf6 {[%clk 0:02:58]} 2. e5 {[%clk 0:03:00]}  Nd5 {[%clk 0:02:58]} 3. Nc3 {[%clk 0:03:01]}  Nb6 {[%clk 0:02:47]} 4. a4 {[%clk 0:02:54]}  a5 {[%clk 0:02:46]} 5. d4 {[%clk 0:02:53]}  d5 {[%clk 0:02:46]} 6. Nf3 {[%clk 0:02:46]}  Bg4 {[%clk 0:02:41]} 7. h3 {[%clk 0:02:46]}  Bxf3 {[%clk 0:02:41]} 8. Qxf3 {[%clk 0:02:47]}  e6 {[%clk 0:02:41]} 9. Qg3 {[%clk 0:02:48]}  Nc6 {[%clk 0:02:36]} 10. Bb5 {[%clk 0:02:38]}  Qd7 {[%clk 0:02:36]} 11. Ne2 {[%clk 0:02:32]}  h5 {[%clk 0:02:28]} 12. h4 {[%clk 0:02:31]}  Nc8 {[%clk 0:02:17]} 13. c3 {[%clk 0:02:27]}  N8a7 {[%clk 0:02:16]} 14. Bd3 {[%clk 0:02:26]}  Ne7 {[%clk 0:02:15]} 15. Bg5 {[%clk 0:02:22]}  c5 {[%clk 0:02:14]} 16. dxc5 {[%clk 0:01:57]}  Qc7 {[%clk 0:02:14]} 17. Nd4 {[%clk 0:01:43]}  Qxc5 {[%clk 0:02:10]} 18. Be3 {[%clk 0:01:38]}  Qc7 {[%clk 0:02:08]} 19. Rd1 {[%clk 0:01:33]}  Nec6 {[%clk 0:02:04]} 20. Nb5 {[%clk 0:01:32]}  Nxb5 {[%clk 0:01:58]} 21. Bxb5 {[%clk 0:01:33]}  g6 {[%clk 0:01:55]} 22. f4 {[%clk 0:01:23]}  Be7 {[%clk 0:01:39]} 23. O-O {[%clk 0:01:18]}  Kf8 {[%clk 0:01:34]} 24. Bd3 {[%clk 0:01:12]}  Qd8 {[%clk 0:01:28]} 25. Bf2 {[%clk 0:01:11]}  Rc8 {[%clk 0:01:27]} 26. Qh3 {[%clk 0:01:05]}  Nb8 {[%clk 0:01:23]} 27. g3 {[%clk 0:00:59]}  Bc5 {[%clk 0:01:22]} 28. Qg2 {[%clk 0:00:56]}  Qb6 {[%clk 0:01:22]} 29. Bxc5+ {[%clk 0:00:54]}  Rxc5 {[%clk 0:01:13]} 30. Qf2 {[%clk 0:00:55]}  Ke7 {[%clk 0:01:09]} 31. Bb5 {[%clk 0:00:55]}  Nd7 {[%clk 0:00:59]} 32. Kg2 {[%clk 0:00:47]}  Rc7 {[%clk 0:00:55]} 33. Bxd7 {[%clk 0:00:39]}  Qxf2+ {[%clk 0:00:55]} 34. Kxf2 {[%clk 0:00:40]}  Kxd7 {[%clk 0:00:56]} 35. Rd4 {[%clk 0:00:40]}  Rb8 {[%clk 0:00:52]} 36. Ra1 {[%clk 0:00:24]}  b5 {[%clk 0:00:50]} 37. axb5 {[%clk 0:00:25]}  Rxb5 {[%clk 0:00:51]} 38. Ra2 {[%clk 0:00:26]}  Rcb7 {[%clk 0:00:48]} 39. Rd2 {[%clk 0:00:26]}  Kc6 {[%clk 0:00:49]} 40. Ke3 {[%clk 0:00:25]}  Kd7 {[%clk 0:00:43]} 41. Kd3 {[%clk 0:00:25]}  Ke7 {[%clk 0:00:44]} 42. Kc2 {[%clk 0:00:23]}  f6 {[%clk 0:00:44]} 43. Rd4 {[%clk 0:00:20]}  Rc5 {[%clk 0:00:39]} 44. Ra1 {[%clk 0:00:10]}  Rb8 {[%clk 0:00:38]} 45. Rda4 {[%clk 0:00:10]}  Rbb5 {[%clk 0:00:25]} 46. Re1 {[%clk 0:00:11]}  Kf7 {[%clk 0:00:23]} 47. Rea1 {[%clk 0:00:10]}  Kg7 {[%clk 0:00:23]} 48. R1a2 {[%clk 0:00:11]}  fxe5 {[%clk 0:00:18]} 49. fxe5 {[%clk 0:00:12]}  g5 {[%clk 0:00:19]} 50. Ra1 {[%clk 0:00:09]}  d4 {[%clk 0:00:16]} 51. Rxd4 {[%clk 0:00:09]}  Rxe5 {[%clk 0:00:17]} 52. Rd2 {[%clk 0:00:02]}  Re3 {[%clk 0:00:15]} 53. hxg5 {[%clk 0:00:00]}  Rxg5 {[%clk 0:00:13]} 0-1